{"text_format":"1","workbook":"xlsx","n_sheets":2,"sheets":["Inicio","Temario"],"not_rendered":{"charts":0,"images":1,"macros":1,"external_links":0,"defined_names":7,"comments":0,"pivot_tables":1},"unopened":[],"bounds":{"document_bytes":16777216,"sheet_cells":100000,"rows_first":2000,"rows_last":500,"rows_between":2000,"halvings":0,"cell_chars":16384,"cell_head_chars":4096},"cells_cut":0,"cells_raw":0,"read":"whole","date_system":"1900"}

{"sheet":"Inicio","index":0,"n_rows":0,"n_cols":0,"rows_kept":0,"cut":false,"hidden":false,"merged":[]}

{"sheet":"Temario","index":1,"n_rows":84,"n_cols":45,"rows_kept":84,"cut":false,"hidden":true,"merged":[[0,0,2,10]]}
["Propuesta Plan Global de capacitación 2025 ",null,null,null,null,null,null,null,null,null,null,null,null,null,null,null,null,null,null,null,null,null,null,null,null,null,null,null,null,null,null,null,null,"Validador",1]
[]
[null,null,null,null,null,null,null,null,null,null,null,null,null,null,null,null,null,null,null,null,null,null,null,null,null,null,null,null,null,"TIPO","Programa ","Mes",null,"Cuenta de Mes"]
["N","TIPO","Nombre","Tema ","Programa ","Dirigido a ","Intensidad horaria ","Fecha","Horario","Fecha Finalización","Modalidad ","Link de Acceso","Es todos los meses","Mes","Validador Mes","Validador tipo","Validador Programa","Validador",null,null,null,null,null,null,null,null,null,null,null,"Todos","Todos","Todos",null,"TIPO","Fecha","Fecha Finalización","Horario","Nombre","Tema ","Programa ","Dirigido a ","Intensidad horaria ","Modalidad ","Link de Acceso","Total"]
["-","-","-","-","-","-","-","-","-","-","-","-","-","-","-","-","-",1,null,null,null,null,null,null,null,null,null,null,null,"Presencial","Gestión Integral","Enero",null,"-","-","-","-","-","-","-","-","-","-","-",1]
[1,"Presencial","Lanzamiento PGC","Lanzamiento PGC","Gestión Integral","Coordinadores, Líderes y miembros de los comités",2,"2025-01-30","8:30 - 11 :30","2025-01-30","Presencial - Bogotá Unisanitas","-",null,{"$f":"IF(AND(M6=\"Si\",presencial=\"\"),\"Todos los meses\",IF(AND(M6=\"Si\",presencial<>\"\",presencial<>\"Diciembre\"),presencial,+PROPER(TEXT(H6,\"mmmm\"))))","v":"Enero"},{"$f":"+IF(presencial=\"\",1,IF(presencial=N6,1,0))","v":1},{"$f":"+IF($P$3=\"\",1,IF($P$3=B6,1,0))","v":1},{"$f":"+IF($Q$3=\"\",1,IF($Q$3=E6,1,0))","v":1},{"$f":"+IF(SUM(O6:Q6)=3,1,0)","v":1},null,null,null,null,null,null,null,null,null,null,null,"Virtual Sincrónico","Salud, Trabajo y Vida","Febrero",null,"Presencial","2025-01-30","2025-01-30","8:30 - 11 :30","Lanzamiento PGC","Lanzamiento PGC","Gestión Integral","Coordinadores, Líderes y miembros de los comités",2,"Presencial - Bogotá Unisanitas","-",1]
[2,"Presencial","Líderes de salud mental  de las Organizaciones ","Salud mental en las Organizaciones ","Salud, Trabajo y Vida","Personal de salud en las empresas ",8,"2025-05-08","8:00- 5:00","2025-05-15","Presencial - Bogotá Unisanitas","-",null,"Mayo",1,{"$f":"+IF($P$3=\"\",1,IF($P$3=B7,1,0))","v":1},{"$f":"+IF($Q$3=\"\",1,IF($Q$3=E7,1,0))","v":1},{"$f":"+IF(SUM(O7:Q7)=3,1,0)","v":1},null,null,null,null,null,null,null,null,null,null,null,"Ciclos de Formación","Seguridad industrial","Marzo",null,"Presencial","2025-05-08","2025-05-15","8:00- 5:00","Líderes de salud mental  de las Organizaciones ","Salud mental en las Organizaciones ","Salud, Trabajo y Vida","Personal de salud en las empresas ",8,"Presencial - Bogotá Unisanitas","-",1]
[3,"Presencial","Líderes de salud mental  de las Organizaciones ","Salud mental en las Organizaciones ","Salud, Trabajo y Vida","Personal de salud en las empresas ",8,"2025-05-15","8:00- 5:00","2025-05-15","Presencial - Bogotá Unisanitas","-",null,"Mayo",1,1,1,1,null,null,null,null,null,null,null,null,null,null,null,"Virtual Asincrónico","Emergencias","Abril",null,"Presencial","2025-05-15","2025-05-15","8:00- 5:00","Líderes de salud mental  de las Organizaciones ","Salud mental en las Organizaciones ","Salud, Trabajo y Vida","Personal de salud en las empresas ",8,"Presencial - Bogotá Unisanitas","-",1]
[4,"Presencial","Masterclass Entorno Seguro Para La Prevención Del Acoso Sexual  Circular 055","Ley 2365 de 2024( enfoque legal y preventivo)","Gestión Integral","Coordinadores, Líderes y miembros de CCL",2,"2025-07-10","8:30 - 10 :30","2025-07-10","Presencial - Bogotá Unisanitas","-",null,"Julio",1,1,1,1,null,null,null,null,null,null,null,null,null,null,null,"Inducción Administrativa","Gestión Administrativa ARL","Mayo",null,"Presencial","2025-07-10","2025-07-10","8:30 - 10 :30","Masterclass Entorno Seguro Para La Prevención Del Acoso Sexual  Circular 055","Ley 2365 de 2024( enfoque legal y preventivo)","Gestión Integral","Coordinadores, Líderes y miembros de CCL",2,"Presencial Cali- Barranquilla ","-",1]
[5,"Presencial","Masterclass Entorno Seguro Para La Prevención Del Acoso Sexual  Circular 055","Ley 2365 de 2024( enfoque legal y preventivo)","Gestión Integral","Coordinadores, Líderes y miembros de CCL",2,"2025-07-10","8:30 - 10 :30","2025-07-10","Presencial Cali- Barranquilla ","-",null,"Julio",1,1,1,1,null,null,null,null,null,null,null,null,null,null,null,null,null,"Junio",null,"Presencial","2025-07-10","2025-07-10","8:30 - 10 :30","Masterclass Entorno Seguro Para La Prevención Del Acoso Sexual  Circular 055","Ley 2365 de 2024( enfoque legal y preventivo)","Gestión Integral","Coordinadores, Líderes y miembros de CCL",2,"Presencial -Villavicencio","-",1]
[6,"Presencial","Masterclass Entorno Seguro Para La Prevención Del Acoso Sexual  Circular 055","Ley 2365 de 2024( enfoque legal y preventivo)","Gestión Integral","Coordinadores, Líderes y miembros de CCL",2,"2025-07-10","8:30 - 10 :30","2025-07-10","Presencial -Villavicencio","-",null,"Julio",1,1,1,1,null,null,null,null,null,null,null,null,null,null,null,null,null,"Julio",null,"Presencial","2025-07-10","2025-07-10","8:30 - 10 :30","Masterclass Entorno Seguro Para La Prevención Del Acoso Sexual  Circular 055","Ley 2365 de 2024( enfoque legal y preventivo)","Gestión Integral","Coordinadores, Líderes y miembros de CCL",2,"Presencial - Bogotá Unisanitas","-",1]
[7,"Presencial","Ladrandole a la fatiga","Resignificación del Estrés  y la Fatiga Laboral ","Salud, Trabajo y Vida","Coordinadores, Líderes y miembros de CCL",4,"2025-08-14","8:30 - 12 :30","2025-08-14","Presencial - Bogotá Unisanitas","-",null,"Agosto",1,1,1,1,null,null,null,null,null,null,null,null,null,null,null,null,null,"Agosto",null,"Presencial","2025-08-14","2025-08-14","8:30 - 12 :30","Ladrandole a la fatiga","Resignificación del Estrés  y la Fatiga Laboral ","Salud, Trabajo y Vida","Coordinadores, Líderes y miembros de CCL",4,"Presencial - Bogotá Unisanitas","-",1]
[8,"Presencial","Feria educacion inmersiva riesgos laborales","Realidad Virtual","Seguridad industrial","Coordinadores, Líderes y miembros de CCL",4,"2025-11-28","8:30 - 12 :30","2025-11-28","Presencial - Bogotá Unisanitas","-",null,"Noviembre",1,1,1,1,null,null,null,null,null,null,null,null,null,null,null,null,null,"Septiembre",null,"Presencial","2025-11-07","2025-11-07","8:30 - 12 :30","Habilidades blandas para líderes de salud y seguridad en el trabajo"," Metodología Lego ","Salud, Trabajo y Vida","Coordinadores, Líderes y miembros de CCL",4,"Presencial-Barranquilla","-",1]
[9,"Presencial","Habilidades blandas para líderes de salud y seguridad en el trabajo"," Metodología Lego ","Salud, Trabajo y Vida","Coordinadores, Líderes y miembros de CCL",4,"2025-11-07","8:30 - 12 :30","2025-11-07","Presencial-Barranquilla","-",null,"Noviembre",1,1,1,1,null,null,null,null,null,null,null,null,null,null,null,null,null,"Octubre",null,"Presencial","2025-11-14","2025-11-14","8:30 - 12 :30","Habilidades blandas para líderes de salud y seguridad en el trabajo"," Metodología Lego ","Salud, Trabajo y Vida","Coordinadores, Líderes y miembros de CCL",4,"Presencial -Villavicencio","-",1]
[10,"Presencial","Habilidades blandas para líderes de salud y seguridad en el trabajo"," Metodología Lego ","Salud, Trabajo y Vida","Coordinadores, Líderes y miembros de CCL",4,"2025-11-14","8:30 - 12 :30","2025-11-14","Presencial -Villavicencio","-",null,"Noviembre",1,1,1,1,null,null,null,null,null,null,null,null,null,null,null,null,null,"Noviembre",null,"Presencial","2025-11-28","2025-11-28","8:30 - 12 :30","Feria educacion inmersiva riesgos laborales","Realidad Virtual","Seguridad industrial","Coordinadores, Líderes y miembros de CCL",4,"Presencial - Bogotá Unisanitas","-",1]
[11,"Virtual Sincrónico","Prevención 360 (Mesa de Expertos estrategia potenciar) El Camino hacia un Trabajo Seguro","Inducción al sistema general de riesgos laborales, Reporte de incidentes, accidente y enfermedad laboral.","Gestión Integral","Coordinadores, Líderes y miembros de los comités",4,"2025-02-06","8:30 - 12 :30","2025-02-06","Virtual Sincrónico - A nivel nacional Unisanitas","meet.google.com/xwv-rydr-zqc",null,"Febrero",1,1,1,1,null,null,null,null,null,null,null,null,null,null,null,null,null,"Diciembre",null,"Virtual Sincrónico","2025-02-06","2025-02-06","8:30 - 12 :30","Prevención 360 (Mesa de Expertos estrategia potenciar) El Camino hacia un Trabajo Seguro","Inducción al sistema general de riesgos laborales, Reporte de incidentes, accidente y enfermedad laboral.","Gestión Integral","Coordinadores, Líderes y miembros de los comités",4,"Virtual Sincrónico - A nivel nacional Unisanitas","meet.google.com/xwv-rydr-zqc",1]
[12,"Virtual Sincrónico","Un camino hacia la  paz  Cómo Combatir la Violencia en el Trabajo"," Factores que influyen en la  identificación, prevención y control sobre la violencia en el trabajo, para promover entornos laborales saludables ","Salud, Trabajo y Vida","Coordinadores, Líderes y miembros de los comités",2,"2025-02-20","8:30 - 10 :30","2025-02-20","Virtual Sincrónico - A nivel nacional Unisanitas","meet.google.com/bto-srap-vxo ",null,"Febrero",1,1,1,1,null,null,null,null,null,null,null,null,null,null,null,null,null,null,null,"Virtual Sincrónico","2025-02-20","2025-02-20","8:30 - 10 :30","Un camino hacia la  paz  Cómo Combatir la Violencia en el Trabajo"," Factores que influyen en la  identificación, prevención y control sobre la violencia en el trabajo, para promover entornos laborales saludables ","Salud, Trabajo y Vida","Coordinadores, Líderes y miembros de los comités",2,"Virtual Sincrónico - A nivel nacional Unisanitas","meet.google.com/bto-srap-vxo ",1]
[13,"Virtual Sincrónico","Masterclass El Futuro del Trabajo Claves de la Reforma Laboral ","Reforma Laboral , que debo conocer como empleador?","Gestión Integral","Coordinadores, Líderes SST",2,"2025-03-06","8:30 - 10 :30","2025-03-07","Virtual Sincrónico - A nivel nacional Unisanitas","meet.google.com/hqd-qrsz-ijs ",null,"Marzo",1,1,1,1,null,null,null,null,null,null,null,null,null,null,null,null,null,null,null,"Virtual Sincrónico","2025-03-06","2025-03-07","8:30 - 10 :30","Masterclass El Futuro del Trabajo Claves de la Reforma Laboral ","Reforma Laboral , que debo conocer como empleador?","Gestión Integral","Coordinadores, Líderes SST",2,"Virtual Sincrónico - A nivel nacional Unisanitas","meet.google.com/hqd-qrsz-ijs ",1]
[14,"Virtual Sincrónico","Biológico Salud Segura Prevención de Riesgos Biológicos en el sector salud "," Programa de Vigilancia epidemiológica por riesgo biológico en sector salud","Salud, Trabajo y Vida","Coordinadores, Líderes y miembros de los comités",2,"2025-03-20","8:30 - 10 :30","2025-03-21","Virtual Sincrónico - A nivel nacional Unisanitas","meet.google.com/baq-tpvf-wjr ",null,"Marzo",1,1,1,1,null,null,null,null,null,null,null,null,null,null,null,null,null,null,null,"Virtual Sincrónico","2025-03-20","2025-03-21","8:30 - 10 :30","Biológico Salud Segura Prevención de Riesgos Biológicos en el sector salud "," Programa de Vigilancia epidemiológica por riesgo biológico en sector salud","Salud, Trabajo y Vida","Coordinadores, Líderes y miembros de los comités",2,"Virtual Sincrónico - A nivel nacional Unisanitas","meet.google.com/baq-tpvf-wjr ",1]
[15,"Virtual Sincrónico","Masterclass Para un entorno seguro Decreto 4979 de 2024 \"Prevención de accidentes mayores\"","Prevención de accidentes mayores","Seguridad industrial","Coordinadores, Líderes y miembros de los comités",2,"2025-04-03","8:30 - 10 :30","2025-04-04","Virtual Sincrónico - A nivel nacional Unisanitas","meet.google.com/bnn-mxpj-sbg ",null,"Abril",1,1,1,1,null,null,null,null,null,null,null,null,null,null,null,null,null,null,null,"Virtual Sincrónico","2025-04-03","2025-04-04","8:30 - 10 :30","Masterclass Para un entorno seguro Decreto 4979 de 2024 \"Prevención de accidentes mayores\"","Prevención de accidentes mayores","Seguridad industrial","Coordinadores, Líderes y miembros de los comités",2,"Virtual Sincrónico - A nivel nacional Unisanitas","meet.google.com/bnn-mxpj-sbg ",1]
[16,"Virtual Sincrónico","Análisis De La Enfermedad Laboral  Investigación para una Prevención Eficaz","Investigación de EL ","Gestión Integral","Coordinadores, Líderes y miembros de los comités",2,"2025-04-24","8:30 - 10 :30","2025-04-25","Virtual Sincrónico - A nivel nacional Unisanitas","meet.google.com/kgy-dozg-axh ",null,"Abril",1,1,1,1,null,null,null,null,null,null,null,null,null,null,null,null,null,null,null,"Virtual Sincrónico","2025-04-24","2025-04-25","8:30 - 10 :30","Análisis De La Enfermedad Laboral  Investigación para una Prevención Eficaz","Investigación de EL ","Gestión Integral","Coordinadores, Líderes y miembros de los comités",2,"Virtual Sincrónico - A nivel nacional Unisanitas","meet.google.com/kgy-dozg-axh ",1]
[17,"Virtual Sincrónico","De la Investigación a la Prevención de la accidentalidad laboral : Mejorando la Seguridad Laboral","Investigación de AT","Seguridad industrial","Coordinadores, Líderes y miembros de los comités",2,"2025-05-22","8:30 - 10 :30","2025-05-23","Virtual Sincrónico - A nivel nacional Unisanitas","meet.google.com/yso-fgpw-mjh ",null,"Mayo",1,1,1,1,null,null,null,null,null,null,null,null,null,null,null,null,null,null,null,"Virtual Sincrónico","2025-05-22","2025-05-23","8:30 - 10 :30","De la Investigación a la Prevención de la accidentalidad laboral : Mejorando la Seguridad Laboral","Investigación de AT","Seguridad industrial","Coordinadores, Líderes y miembros de los comités",2,"Virtual Sincrónico - A nivel nacional Unisanitas","meet.google.com/yso-fgpw-mjh ",1]
[18,"Virtual Sincrónico","Psicokeralty Redes de apoyo como eje del bienestar laboral ","Prevención de Riesgo Psicosocial","Salud, Trabajo y Vida","Coordinadores, Líderes y miembros de CCL",2,"2025-06-05","8:30 - 10 :30","2025-06-06","Virtual Sincrónico - A nivel nacional Unisanitas","meet.google.com/ayd-ryjn-yrw ",null,"Junio",1,1,1,1,null,null,null,null,null,null,null,null,null,null,null,null,null,null,null,"Virtual Sincrónico","2025-06-05","2025-06-06","8:30 - 10 :30","Psicokeralty Redes de apoyo como eje del bienestar laboral ","Prevención de Riesgo Psicosocial","Salud, Trabajo y Vida","Coordinadores, Líderes y miembros de CCL",2,"Virtual Sincrónico - A nivel nacional Unisanitas","meet.google.com/ayd-ryjn-yrw ",1]
[19,"Virtual Sincrónico","Educación y conciencia Fomento de la cultura en seguridad Vial\n"," Normatividad para todos los actores viales ","Seguridad industrial","Coordinadores, Líderes y miembros de los comités",2,"2025-06-19","8:30 - 10 :30","2025-06-20","Virtual Sincrónico - A nivel nacional Unisanitas","meet.google.com/ppr-omtr-zwy ",null,"Junio",1,1,1,1,null,null,null,null,null,null,null,null,null,null,null,null,null,null,null,"Virtual Sincrónico","2025-06-19","2025-06-20","8:30 - 10 :30","Educación y conciencia Fomento de la cultura en seguridad Vial\n"," Normatividad para todos los actores viales ","Seguridad industrial","Coordinadores, Líderes y miembros de los comités",2,"Virtual Sincrónico - A nivel nacional Unisanitas","meet.google.com/ppr-omtr-zwy ",1]
[20,"Virtual Sincrónico","Cero Riesgo,  del diagnostico a la prevención Higiene Industrial para un Entorno Laboral Saludable","La higiene industrial en la prevención de la enfermedad laboral","Seguridad industrial","Coordinadores, Líderes SST",2,"2025-06-26","8:30 - 10 :30","2025-06-27","Virtual Sincrónico - A nivel nacional Unisanitas","meet.google.com/mvg-akiv-xan ",null,"Junio",1,1,1,1,null,null,null,null,null,null,null,null,null,null,null,null,null,null,null,"Virtual Sincrónico","2025-06-26","2025-06-27","8:30 - 10 :30","Cero Riesgo,  del diagnostico a la prevención Higiene Industrial para un Entorno Laboral Saludable","La higiene industrial en la prevención de la enfermedad laboral","Seguridad industrial","Coordinadores, Líderes SST",2,"Virtual Sincrónico - A nivel nacional Unisanitas","meet.google.com/mvg-akiv-xan ",1]
[21,"Virtual Sincrónico","BioLógico Protección Vital: Prevención  Enfermedades Infecciosas transmitidas por Vectores","Prevención de Enfermedades Infecciosas transmitidas por Vectores","Salud, Trabajo y Vida","Coordinadores, Líderes y miembros de los comités",2,"2025-07-03","8:30 - 10 :30","2025-07-04","Virtual Sincrónico - A nivel nacional Unisanitas","meet.google.com/fwm-fzvs-tmj ",null,"Julio",1,1,1,1,null,null,null,null,null,null,null,null,null,null,null,null,null,null,null,"Virtual Sincrónico","2025-07-03","2025-07-04","8:30 - 10 :30","BioLógico Protección Vital: Prevención  Enfermedades Infecciosas transmitidas por Vectores","Prevención de Enfermedades Infecciosas transmitidas por Vectores","Salud, Trabajo y Vida","Coordinadores, Líderes y miembros de los comités",2,"Virtual Sincrónico - A nivel nacional Unisanitas","meet.google.com/fwm-fzvs-tmj ",1]
[22,"Virtual Sincrónico","Como Generar campañas de prevencion exitosas en mi empresa  - Mira donde pisas prevención contra caídas ","Mira dónde Pisas - prevención contra caídas ","Gestión Integral","Coordinadores, Líderes y miembros de los comités",2,"2025-07-17","8:30 - 10 :30","2025-07-18","Virtual Sincrónico - A nivel nacional Unisanitas","meet.google.com/rvz-nnvv-brf ",null,"Julio",1,1,1,1,null,null,null,null,null,null,null,null,null,null,null,null,null,null,null,"Virtual Sincrónico","2025-07-17","2025-07-18","8:30 - 10 :30","Como Generar campañas de prevencion exitosas en mi empresa  - Mira donde pisas prevención contra caídas ","Mira dónde Pisas - prevención contra caídas ","Gestión Integral","Coordinadores, Líderes y miembros de los comités",2,"Virtual Sincrónico - A nivel nacional Unisanitas","meet.google.com/rvz-nnvv-brf ",1]
[23,"Virtual Sincrónico","Prevención activa : Comprometidos con Más que la Protección","Medidas de promoción y prevención para minimizar los efectos por  la exposición a Asbesto, Sílice y/o Carbón ","Seguridad industrial","Coordinadores, Líderes y miembros de los comités",2,"2025-08-28","8:30 - 10 :30","2025-08-29","Virtual Sincrónico - A nivel nacional Unisanitas","meet.google.com/dyt-kqqu-ryi ",null,"Agosto",1,1,1,1,null,null,null,null,null,null,null,null,null,null,null,null,null,null,null,"Virtual Sincrónico","2025-08-28","2025-08-29","8:30 - 10 :30","Prevención activa : Comprometidos con Más que la Protección","Medidas de promoción y prevención para minimizar los efectos por  la exposición a Asbesto, Sílice y/o Carbón ","Seguridad industrial","Coordinadores, Líderes y miembros de los comités",2,"Virtual Sincrónico - A nivel nacional Unisanitas","meet.google.com/dyt-kqqu-ryi ",1]
[24,"Virtual Sincrónico","Emociones al volante Estrategias para una Conducción Segura una mirada holística del contexto vial . "," Estrategias para una Conducción Segura , una mirada holística del contexto vial . ","Seguridad industrial","Coordinadores, Líderes y miembros de los comités",2,"2025-09-11","8:30 - 10 :30","2025-09-12","Virtual Sincrónico - A nivel nacional Unisanitas","meet.google.com/zhq-rmtp-kei ",null,"Septiembre",1,1,1,1,null,null,null,null,null,null,null,null,null,null,null,null,null,null,null,"Virtual Sincrónico","2025-09-11","2025-09-12","8:30 - 10 :30","Emociones al volante Estrategias para una Conducción Segura una mirada holística del contexto vial . "," Estrategias para una Conducción Segura , una mirada holística del contexto vial . ","Seguridad industrial","Coordinadores, Líderes y miembros de los comités",2,"Virtual Sincrónico - A nivel nacional Unisanitas","meet.google.com/zhq-rmtp-kei ",1]
[25,"Virtual Sincrónico","Manos a la Obra - Seguridad en el uso de Herramientas estrategia PONLE CORAZON A TUS MANOS ","Manejo de herramientas y prevención de accidentes manuales ","Seguridad industrial","Coordinadores, Líderes y miembros de los comités",2,"2025-09-18","8:30 - 10 :30","2025-09-19","Virtual Sincrónico - A nivel nacional Unisanitas","meet.google.com/oaw-mhtx-ypt ",null,"Septiembre",1,1,1,1,null,null,null,null,null,null,null,null,null,null,null,null,null,null,null,"Virtual Sincrónico","2025-09-18","2025-09-19","8:30 - 10 :30","Manos a la Obra - Seguridad en el uso de Herramientas estrategia PONLE CORAZON A TUS MANOS ","Manejo de herramientas y prevención de accidentes manuales ","Seguridad industrial","Coordinadores, Líderes y miembros de los comités",2,"Virtual Sincrónico - A nivel nacional Unisanitas","meet.google.com/oaw-mhtx-ypt ",1]
[26,"Virtual Sincrónico","Equilíbrate  programa para la  prevención del Burnout","Programa para la  prevención del Burnout","Salud, Trabajo y Vida","Coordinadores, Líderes y miembros de CCL",2,"2025-09-25","8:30 - 10 :30","2025-09-26","Virtual Sincrónico - A nivel nacional Unisanitas","meet.google.com/xfq-pbew-tpc ",null,"Septiembre",1,1,1,1,null,null,null,null,null,null,null,null,null,null,null,null,null,null,null,"Virtual Sincrónico","2025-09-25","2025-09-26","8:30 - 10 :30","Equilíbrate  programa para la  prevención del Burnout","Programa para la  prevención del Burnout","Salud, Trabajo y Vida","Coordinadores, Líderes y miembros de CCL",2,"Virtual Sincrónico - A nivel nacional Unisanitas","meet.google.com/xfq-pbew-tpc ",1]
[27,"Virtual Sincrónico","Desafíos del Comité de convivencia Laboral Gestión de quejas  al CCL ","Gestión de quejas  al CCL ","Gestión Integral","Coordinadores, Líderes y miembros de CCL",2,"2025-10-02","8:30 - 10 :30","2025-10-03","Virtual Sincrónico - A nivel nacional Unisanitas","meet.google.com/mga-hjau-hom ",null,"Octubre",1,1,1,1,null,null,null,null,null,null,null,null,null,null,null,null,null,null,null,"Virtual Sincrónico","2025-10-02","2025-10-03","8:30 - 10 :30","Desafíos del Comité de convivencia Laboral Gestión de quejas  al CCL ","Gestión de quejas  al CCL ","Gestión Integral","Coordinadores, Líderes y miembros de CCL",2,"Virtual Sincrónico - A nivel nacional Unisanitas","meet.google.com/mga-hjau-hom ",1]
[28,"Virtual Sincrónico","Trabajo Seguro Gestión de tareas críticas.","Gestión de tareas críticas.","Seguridad industrial","Coordinadores, Líderes y miembros de los comités",2,"2025-10-16","8:30 - 10 :30","2025-10-17","Virtual Sincrónico - A nivel nacional Unisanitas","meet.google.com/qtv-exrg-evr ",null,"Octubre",1,1,1,1,null,null,null,null,null,null,null,null,null,null,null,null,null,null,null,"Virtual Sincrónico","2025-10-16","2025-10-17","8:30 - 10 :30","Trabajo Seguro Gestión de tareas críticas.","Gestión de tareas críticas.","Seguridad industrial","Coordinadores, Líderes y miembros de los comités",2,"Virtual Sincrónico - A nivel nacional Unisanitas","meet.google.com/qtv-exrg-evr ",1]
[29,"Virtual Sincrónico","Equidad de género reconocimiento y acción mundo laboral  ","Equidad de género ","Gestión Integral","Coordinadores, Líderes y miembros de CCL",2,"2025-10-30","8:30 - 10 :30","2025-10-31","Virtual Sincrónico - A nivel nacional Unisanitas","meet.google.com/nrt-uxnr-bzi ",null,"Octubre",1,1,1,1,null,null,null,null,null,null,null,null,null,null,null,null,null,null,null,"Virtual Sincrónico","2025-10-30","2025-10-31","8:30 - 10 :30","Equidad de género reconocimiento y acción mundo laboral  ","Equidad de género ","Gestión Integral","Coordinadores, Líderes y miembros de CCL",2,"Virtual Sincrónico - A nivel nacional Unisanitas","meet.google.com/nrt-uxnr-bzi ",1]
[30,"Virtual Sincrónico","Desafíos para la gestión de los riesgos de los trabajadores a distancia ","Desafíos para la gestión de los riesgos de los trabajadores a distancia  ","Gestión Integral","Coordinadores, Líderes y miembros de CCL",2,"2025-11-06","8:30 - 10 :30","2025-11-07","Virtual Sincrónico - A nivel nacional Unisanitas","meet.google.com/xss-tuxp-fdn ",null,"Noviembre",1,1,1,1,null,null,null,null,null,null,null,null,null,null,null,null,null,null,null,"Virtual Sincrónico","2025-11-06","2025-11-07","8:30 - 10 :30","Desafíos para la gestión de los riesgos de los trabajadores a distancia ","Desafíos para la gestión de los riesgos de los trabajadores a distancia  ","Gestión Integral","Coordinadores, Líderes y miembros de CCL",2,"Virtual Sincrónico - A nivel nacional Unisanitas","meet.google.com/xss-tuxp-fdn ",1]
[31,"Virtual Sincrónico","Tecno Prevención: Tecnología inteligente para  la prevención de  alteraciones en la salud laboral","Tecnología inteligente para  la prevención de  alteraciones en la salud laboral\"","Salud, Trabajo y Vida","Coordinadores, Líderes y miembros de CCL",2,"2025-11-13","8:30 - 10 :30","2025-11-14","Virtual Sincrónico - A nivel nacional Unisanitas","meet.google.com/ndu-qfid-hfk ",null,"Noviembre",1,1,1,1,null,null,null,null,null,null,null,null,null,null,null,null,null,null,null,"Virtual Sincrónico","2025-11-13","2025-11-14","8:30 - 10 :30","Tecno Prevención: Tecnología inteligente para  la prevención de  alteraciones en la salud laboral","Tecnología inteligente para  la prevención de  alteraciones en la salud laboral\"","Salud, Trabajo y Vida","Coordinadores, Líderes y miembros de CCL",2,"Virtual Sincrónico - A nivel nacional Unisanitas","meet.google.com/ndu-qfid-hfk ",1]
[32,"Virtual Sincrónico","Seguridad en el Trabajo con Calderas Requisitos de la Resolución 1857","Resolución 1857 de 2024 –  Requisitos mínimos seguridad y salud para desarrollo de trabajo en calderas","Seguridad industrial","Coordinadores, Líderes y miembros de CCL",2,"2025-11-20","8:30 - 10 :30","2025-11-21","Virtual Sincrónico - A nivel nacional Unisanitas","meet.google.com/xig-vdns-ofk ",null,"Noviembre",1,1,1,1,null,null,null,null,null,null,null,null,null,null,null,null,null,null,null,"Virtual Sincrónico","2025-11-20","2025-11-21","8:30 - 10 :30","Seguridad en el Trabajo con Calderas Requisitos de la Resolución 1857","Resolución 1857 de 2024 –  Requisitos mínimos seguridad y salud para desarrollo de trabajo en calderas","Seguridad industrial","Coordinadores, Líderes y miembros de CCL",2,"Virtual Sincrónico - A nivel nacional Unisanitas","meet.google.com/xig-vdns-ofk ",1]
[33,"Ciclos de Formación","Balance:  Herramientas para una alimentación saludable","Módulo 1 . BALANCE  Herramientas para una alimentación saludable","Salud, Trabajo y Vida","Coordinadores, Líderes y miembros de los comités",2,"2025-02-27","8:30 - 10 :30","2025-02-27","Virtual Sincrónico - A nivel nacional Unisanitas","meet.google.com/ogt-xqep-niv ",null,{"$f":"IF(AND(M38=\"Si\",presencial=\"\"),\"Todos los meses\",IF(AND(M38=\"Si\",presencial<>\"\",presencial<>\"Diciembre\"),presencial,+PROPER(TEXT(H38,\"mmmm\"))))","v":"Febrero"},{"$f":"+IF(presencial=\"\",1,IF(presencial=N38,1,0))","v":1},1,1,1,null,null,null,null,null,null,null,null,null,null,null,null,null,null,null,"Ciclos de Formación","2025-02-27","2025-02-27","8:30 - 10 :30","Balance:  Herramientas para una alimentación saludable","Módulo 1 . BALANCE  Herramientas para una alimentación saludable","Salud, Trabajo y Vida","Coordinadores, Líderes y miembros de los comités",2,"Virtual Sincrónico - A nivel nacional Unisanitas","meet.google.com/ogt-xqep-niv ",1]
[34,"Ciclos de Formación","Balance : Herramientas para  mejorar la higiene del sueño en trabajadores con turnicidad ","Módulo 2 . Higiene del sueño ","Salud, Trabajo y Vida","Coordinadores, Líderes y miembros de los comités",2,"2025-03-27","8:30 - 10 :30","2025-03-27","Virtual Sincrónico - A nivel nacional Unisanitas","meet.google.com/kum-yqhj-ckm ",null,"Marzo",1,1,1,1,null,null,null,null,null,null,null,null,null,null,null,null,null,null,null,"Ciclos de Formación","2025-03-27","2025-03-27","8:30 - 10 :30","Balance : Herramientas para  mejorar la higiene del sueño en trabajadores con turnicidad ","Módulo 2 . Higiene del sueño ","Salud, Trabajo y Vida","Coordinadores, Líderes y miembros de los comités",2,"Virtual Sincrónico - A nivel nacional Unisanitas","meet.google.com/kum-yqhj-ckm ",1]
[35,"Ciclos de Formación","Química Armonizada: Generalidades del riesgo en  Química Armonizada","Módulo 1 Generalidades del riesgo Químico  Técnicas de prevención y seguridad del riesgo químico Resolución 4970 de 202","Seguridad industrial","Coordinadores, Líderes y miembros de CCL",2,"2025-04-10","8:30 - 10 :30","2025-04-10","Virtual Sincrónico - A nivel nacional Unisanitas","meet.google.com/ydk-grry-fmq ",null,"Abril",1,1,1,1,null,null,null,null,null,null,null,null,null,null,null,null,null,null,null,"Ciclos de Formación","2025-04-10","2025-04-10","8:30 - 10 :30","Química Armonizada: Generalidades del riesgo en  Química Armonizada","Módulo 1 Generalidades del riesgo Químico  Técnicas de prevención y seguridad del riesgo químico Resolución 4970 de 202","Seguridad industrial","Coordinadores, Líderes y miembros de CCL",2,"Virtual Sincrónico - A nivel nacional Unisanitas","meet.google.com/ydk-grry-fmq ",1]
[36,"Ciclos de Formación","Química Armonizada: Técnicas de prevención y seguridad del riesgo químico ","Módulo 2 Armonizando la Higiene ( riesgo químico)","Seguridad industrial","Coordinadores, Líderes y miembros de CCL",2,"2025-05-29","8:30 - 10 :30","2025-05-29","Virtual Sincrónico - A nivel nacional Unisanitas","meet.google.com/dtw-yckc-myd ",null,"Mayo",1,1,1,1,null,null,null,null,null,null,null,null,null,null,null,null,null,null,null,"Ciclos de Formación","2025-05-29","2025-05-29","8:30 - 10 :30","Química Armonizada: Técnicas de prevención y seguridad del riesgo químico ","Módulo 2 Armonizando la Higiene ( riesgo químico)","Seguridad industrial","Coordinadores, Líderes y miembros de CCL",2,"Virtual Sincrónico - A nivel nacional Unisanitas","meet.google.com/dtw-yckc-myd ",1]
[37,"Ciclos de Formación","Salvando Vidas","Pista de entrenamiento  integral ","Emergencias","Coordinadores, Líderes y Brigadistas ",6,"2025-10-24","9:00- 3:00","2025-10-24","Presencial - Bogotá Unisanitas",null,null,"Octubre",1,1,1,1,null,null,null,null,null,null,null,null,null,null,null,null,null,null,null,"Ciclos de Formación","2025-10-24","2025-10-24","9:00- 3:00","Salvando Vidas","Pista de entrenamiento  integral ","Emergencias","Coordinadores, Líderes y miembros de CCL",6,"Presencial - Barranquilla","(en blanco)",1]
[38,"Ciclos de Formación","Salvando Vidas","Pista de entrenamiento  integral ","Emergencias","Coordinadores, Líderes y miembros de CCL",6,"2025-10-24","9:00- 3:00","2025-10-24","Presencial - Barranquilla",null,null,"Octubre",1,1,1,1,null,null,null,null,null,null,null,null,null,null,null,null,null,null,null,"Ciclos de Formación","2025-10-24","2025-10-24","9:00- 3:00","Salvando Vidas","Pista de entrenamiento  integral ","Emergencias","Coordinadores, Líderes y miembros de CCL",6,"Presencial -Villavicencio","(en blanco)",1]
[39,"Ciclos de Formación","Salvando Vidas","Pista de entrenamiento  integral ","Emergencias","Coordinadores, Líderes y miembros de CCL",6,"2025-10-24","9:00- 3:00","2025-10-24","Presencial -Villavicencio",null,null,"Octubre",1,1,1,1,null,null,null,null,null,null,null,null,null,null,null,null,null,null,null,"Ciclos de Formación","2025-10-24","2025-10-24","9:00- 3:00","Salvando Vidas","Pista de entrenamiento  integral ","Emergencias","Coordinadores, Líderes y miembros de CCL",6,"Presencial -Cali ","(en blanco)",1]
[40,"Ciclos de Formación","Salvando Vidas","Pista de entrenamiento  integral ","Emergencias","Coordinadores, Líderes y miembros de CCL",6,"2025-10-24","9:00- 3:00","2025-10-24","Presencial -Cali ",null,null,"Octubre",1,1,1,1,null,null,null,null,null,null,null,null,null,null,null,null,null,null,null,"Ciclos de Formación","2025-10-24","2025-10-24","9:00- 3:00","Salvando Vidas","Pista de entrenamiento  integral ","Emergencias","Coordinadores, Líderes y Brigadistas ",6,"Presencial - Bogotá Unisanitas","(en blanco)",1]
[41,"Virtual Asincrónico","Manejo manual de cargas como prevención de alteraciones OM","-","Salud, Trabajo y Vida","Coordinadores, Líderes y miembros de los comités","10 Horas","Febrero","Asincrónica","Noviembre","Virtual Asincrónico-  A nivel nacional Unisanitas","-","Si","Todos los meses",1,1,{"$f":"+IF($Q$3=\"\",1,IF($Q$3=F46,1,0))","v":1},1,null,null,null,null,null,null,null,null,null,null,null,null,null,null,null,"Virtual Asincrónico","Febrero","Noviembre","Asincrónica","Actos y condiciones inseguras en el trabajo","-","Gestión Integral","Coordinadores, Líderes y miembros de los comités","10 Horas","Virtual Asincrónico-  A nivel nacional Unisanitas","-",1]
[42,"Virtual Asincrónico","Actos y condiciones inseguras en el trabajo","-","Gestión Integral","Coordinadores, Líderes y miembros de los comités","10 Horas","Febrero","Asincrónica","Noviembre","Virtual Asincrónico-  A nivel nacional Unisanitas","-","Si","Todos los meses",1,1,1,1,null,null,null,null,null,null,null,null,null,null,null,null,null,null,null,"Virtual Asincrónico","Febrero","Noviembre","Asincrónica","Al día con el comité paritario de seguridad y salud en el trabajo, marco legal y funcionamiento","-","Gestión Integral","Coordinadores, Líderes y miembros de los comités","10 Horas","Virtual Asincrónico-  A nivel nacional Unisanitas","-",1]
[43,"Virtual Asincrónico","Al día con el comité paritario de seguridad y salud en el trabajo, marco legal y funcionamiento","-","Gestión Integral","Coordinadores, Líderes y miembros de los comités","10 Horas","Febrero","Asincrónica","Noviembre","Virtual Asincrónico-  A nivel nacional Unisanitas","-","Si","Todos los meses",1,1,1,1,null,null,null,null,null,null,null,null,null,null,null,null,null,null,null,"Virtual Asincrónico","Febrero","Noviembre","Asincrónica","Al día con el Comité Paritario de Seguridad y Salud en el Trabajo: Inspecciones de seguridad","-","Gestión Integral","Coordinadores, Líderes y miembros de los comités","10 Horas","Virtual Asincrónico-  A nivel nacional Unisanitas","-",1]
[44,"Virtual Asincrónico","Al día con el Comité Paritario de Seguridad y Salud en el Trabajo: Inspecciones de seguridad","-","Gestión Integral","Coordinadores, Líderes y miembros de los comités","10 Horas","Febrero","Asincrónica","Noviembre","Virtual Asincrónico-  A nivel nacional Unisanitas","-","Si","Todos los meses",1,1,1,1,null,null,null,null,null,null,null,null,null,null,null,null,null,null,null,"Virtual Asincrónico","Febrero","Noviembre","Asincrónica","Al día con el Comité Paritario de Seguridad y Salud en el trabajo: Investigación y análisis de accidentes e incidentes laborales","-","Gestión Integral","Coordinadores, Líderes y miembros de los comités","10 Horas","Virtual Asincrónico-  A nivel nacional Unisanitas","-",1]
[45,"Virtual Asincrónico","Buenas prácticas para asegurar el bienestar del trabajador a distancia","-","Salud, Trabajo y Vida","Coordinadores, Líderes y miembros de los comités","10 Horas","Febrero","Asincrónica","Noviembre","Virtual Asincrónico-  A nivel nacional Unisanitas","-","Si","Todos los meses",1,1,1,1,null,null,null,null,null,null,null,null,null,null,null,null,null,null,null,"Virtual Asincrónico","Febrero","Noviembre","Asincrónica","Buenas prácticas para asegurar el bienestar del trabajador a distancia","-","Salud, Trabajo y Vida","Coordinadores, Líderes y miembros de los comités","10 Horas","Virtual Asincrónico-  A nivel nacional Unisanitas","-",1]
[46,"Virtual Asincrónico","Conservación auditiva","-","Salud, Trabajo y Vida","Coordinadores, Líderes y miembros de los comités","10 Horas","Febrero","Asincrónica","Noviembre","Virtual Asincrónico-  A nivel nacional Unisanitas","-","Si","Todos los meses",1,1,1,1,null,null,null,null,null,null,null,null,null,null,null,null,null,null,null,"Virtual Asincrónico","Febrero","Noviembre","Asincrónica","Conservación auditiva","-","Salud, Trabajo y Vida","Coordinadores, Líderes y miembros de los comités","10 Horas","Virtual Asincrónico-  A nivel nacional Unisanitas","-",1]
[47,"Virtual Asincrónico","Conservación de la voz","-","Salud, Trabajo y Vida","Coordinadores, Líderes y miembros de los comités","10 Horas","Febrero","Asincrónica","Noviembre","Virtual Asincrónico-  A nivel nacional Unisanitas","-","Si","Todos los meses",1,1,1,1,null,null,null,null,null,null,null,null,null,null,null,null,null,null,null,"Virtual Asincrónico","Febrero","Noviembre","Asincrónica","Conservación de la voz","-","Salud, Trabajo y Vida","Coordinadores, Líderes y miembros de los comités","10 Horas","Virtual Asincrónico-  A nivel nacional Unisanitas","-",1]
[48,"Virtual Asincrónico","EducArte \"Formación en SST para estudiantes","-","Gestión Integral","Coordinadores, Líderes y miembros de los comités","10 Horas","Febrero","Asincrónica","Noviembre","Virtual Asincrónico-  A nivel nacional Unisanitas","-","Si","Todos los meses",1,1,1,1,null,null,null,null,null,null,null,null,null,null,null,null,null,null,null,"Virtual Asincrónico","Febrero","Noviembre","Asincrónica","EducArte \"Formación en SST para estudiantes","-","Gestión Integral","Coordinadores, Líderes y miembros de los comités","10 Horas","Virtual Asincrónico-  A nivel nacional Unisanitas","-",1]
[49,"Virtual Asincrónico","El autocuidado como hábito para fortalecer la seguridad y salud en el trabajo","-","Gestión Integral","Coordinadores, Líderes y miembros de los comités","10 Horas","Febrero","Asincrónica","Noviembre","Virtual Asincrónico-  A nivel nacional Unisanitas","-","Si","Todos los meses",1,1,1,1,null,null,null,null,null,null,null,null,null,null,null,null,null,null,null,"Virtual Asincrónico","Febrero","Noviembre","Asincrónica","El autocuidado como hábito para fortalecer la seguridad y salud en el trabajo","-","Gestión Integral","Coordinadores, Líderes y miembros de los comités","10 Horas","Virtual Asincrónico-  A nivel nacional Unisanitas","-",1]
[50,"Virtual Asincrónico","Equipos que promueven la sana convivencia: Funciones y responsabilidades del comité de convivencia laboral","-","Gestión Integral","Coordinadores, Líderes y miembros de los comités","10 Horas","Febrero","Asincrónica","Noviembre","Virtual Asincrónico-  A nivel nacional Unisanitas","-","Si","Todos los meses",1,1,1,1,null,null,null,null,null,null,null,null,null,null,null,null,null,null,null,"Virtual Asincrónico","Febrero","Noviembre","Asincrónica","Equipos que promueven la sana convivencia: Funciones y responsabilidades del comité de convivencia laboral","-","Gestión Integral","Coordinadores, Líderes y miembros de los comités","10 Horas","Virtual Asincrónico-  A nivel nacional Unisanitas","-",1]
[51,"Virtual Asincrónico","Fomentando hábitos y estilos de vida saludables","-","Salud, Trabajo y Vida","Coordinadores, Líderes y miembros de los comités","10 Horas","Febrero","Asincrónica","Noviembre","Virtual Asincrónico-  A nivel nacional Unisanitas","-","Si","Todos los meses",1,1,1,1,null,null,null,null,null,null,null,null,null,null,null,null,null,null,null,"Virtual Asincrónico","Febrero","Noviembre","Asincrónica","Fomentando hábitos y estilos de vida saludables","-","Salud, Trabajo y Vida","Coordinadores, Líderes y miembros de los comités","10 Horas","Virtual Asincrónico-  A nivel nacional Unisanitas","-",1]
[52,"Virtual Asincrónico","Guía práctica para la investigación de enfermedad laboral","-","Gestión Integral","Coordinadores, Líderes y miembros de los comités","10 Horas","Febrero","Asincrónica","Noviembre","Virtual Asincrónico-  A nivel nacional Unisanitas","-","Si","Todos los meses",1,1,1,1,null,null,null,null,null,null,null,null,null,null,null,null,null,null,null,"Virtual Asincrónico","Febrero","Noviembre","Asincrónica","Guía práctica para la investigación de enfermedad laboral","-","Gestión Integral","Coordinadores, Líderes y miembros de los comités","10 Horas","Virtual Asincrónico-  A nivel nacional Unisanitas","-",1]
[53,"Virtual Asincrónico","Al día con el Comité Paritario de Seguridad y Salud en el trabajo: Investigación y análisis de accidentes e incidentes laborales","-","Gestión Integral","Coordinadores, Líderes y miembros de los comités","10 Horas","Febrero","Asincrónica","Noviembre","Virtual Asincrónico-  A nivel nacional Unisanitas","-","Si","Todos los meses",1,1,1,1,null,null,null,null,null,null,null,null,null,null,null,null,null,null,null,"Virtual Asincrónico","Febrero","Noviembre","Asincrónica","Manejo manual de cargas como prevención de alteraciones OM","-","Salud, Trabajo y Vida","Coordinadores, Líderes y miembros de los comités","10 Horas","Virtual Asincrónico-  A nivel nacional Unisanitas","-",1]
[54,"Virtual Asincrónico","Prevención y control básico del fuego","-","Seguridad industrial","Coordinadores, Líderes y miembros de los comités","10 Horas","Febrero","Asincrónica","Noviembre","Virtual Asincrónico-  A nivel nacional Unisanitas","-","Si","Todos los meses",1,1,1,1,null,null,null,null,null,null,null,null,null,null,null,null,null,null,null,"Virtual Asincrónico","Febrero","Noviembre","Asincrónica","Matriz de identificación de peligros, evaluación, valoración de riesgos y determinación de controles","-","Gestión Integral","Coordinadores, Líderes y miembros de los comités","10 Horas","Virtual Asincrónico-  A nivel nacional Unisanitas","-",1]
[55,"Virtual Asincrónico","Matriz de identificación de peligros, evaluación, valoración de riesgos y determinación de controles","-","Gestión Integral","Coordinadores, Líderes y miembros de los comités","10 Horas","Febrero","Asincrónica","Noviembre","Virtual Asincrónico-  A nivel nacional Unisanitas","-","Si","Todos los meses",1,1,1,1,null,null,null,null,null,null,null,null,null,null,null,null,null,null,null,"Virtual Asincrónico","Febrero","Noviembre","Asincrónica","Mira dónde Pisas: \"Prevención caídas a nivel\"","-","Seguridad industrial","Coordinadores, Líderes y miembros de los comités","10 Horas","Virtual Asincrónico-  A nivel nacional Unisanitas","-",1]
[56,"Virtual Asincrónico","Mira dónde Pisas: \"Prevención caídas a nivel\"","-","Seguridad industrial","Coordinadores, Líderes y miembros de los comités","10 Horas","Febrero","Asincrónica","Noviembre","Virtual Asincrónico-  A nivel nacional Unisanitas","-","Si","Todos los meses",1,1,1,1,null,null,null,null,null,null,null,null,null,null,null,null,null,null,null,"Virtual Asincrónico","Febrero","Noviembre","Asincrónica","Plan de emergencias, evacuación y rescate básico","-","Seguridad industrial","Coordinadores, Líderes y miembros de los comités","10 Horas","Virtual Asincrónico-  A nivel nacional Unisanitas","-",1]
[57,"Virtual Asincrónico","Plan de emergencias, evacuación y rescate básico","-","Seguridad industrial","Coordinadores, Líderes y miembros de los comités","10 Horas","Febrero","Asincrónica","Noviembre","Virtual Asincrónico-  A nivel nacional Unisanitas","-","Si","Todos los meses",1,1,1,1,null,null,null,null,null,null,null,null,null,null,null,null,null,null,null,"Virtual Asincrónico","Febrero","Noviembre","Asincrónica","Prevención de patologías de miembro superior y tecno prevención","-","Salud, Trabajo y Vida","Coordinadores, Líderes y miembros de los comités","10 Horas","Virtual Asincrónico-  A nivel nacional Unisanitas","-",1]
[58,"Virtual Asincrónico","Prevención de patologías de miembro superior y tecno prevención","-","Salud, Trabajo y Vida","Coordinadores, Líderes y miembros de los comités","10 Horas","Febrero","Asincrónica","Noviembre","Virtual Asincrónico-  A nivel nacional Unisanitas","-","Si","Todos los meses",1,1,1,1,null,null,null,null,null,null,null,null,null,null,null,null,null,null,null,"Virtual Asincrónico","Febrero","Noviembre","Asincrónica","Prevención del riesgo biológico","-","Salud, Trabajo y Vida","Coordinadores, Líderes y miembros de los comités","10 Horas","Virtual Asincrónico-  A nivel nacional Unisanitas","-",1]
[59,"Virtual Asincrónico","Prevención del riesgo biológico","-","Salud, Trabajo y Vida","Coordinadores, Líderes y miembros de los comités","10 Horas","Febrero","Asincrónica","Noviembre","Virtual Asincrónico-  A nivel nacional Unisanitas","-","Si","Todos los meses",1,1,1,1,null,null,null,null,null,null,null,null,null,null,null,null,null,null,null,"Virtual Asincrónico","Febrero","Noviembre","Asincrónica","Prevención del riesgo público","-","Seguridad industrial","Coordinadores, Líderes y miembros de los comités","10 Horas","Virtual Asincrónico-  A nivel nacional Unisanitas","-",1]
[60,"Virtual Asincrónico","Prevención del riesgo público","-","Seguridad industrial","Coordinadores, Líderes y miembros de los comités","10 Horas","Febrero","Asincrónica","Noviembre","Virtual Asincrónico-  A nivel nacional Unisanitas","-","Si","Todos los meses",1,1,1,1,null,null,null,null,null,null,null,null,null,null,null,null,null,null,null,"Virtual Asincrónico","Febrero","Noviembre","Asincrónica","Prevención y control básico del fuego","-","Seguridad industrial","Coordinadores, Líderes y miembros de los comités","10 Horas","Virtual Asincrónico-  A nivel nacional Unisanitas","-",1]
[61,"Virtual Asincrónico","Primeros auxilios básicos","-","Seguridad industrial","Coordinadores, Líderes y miembros de los comités","10 Horas","Febrero","Asincrónica","Noviembre","Virtual Asincrónico-  A nivel nacional Unisanitas","-","Si","Todos los meses",1,1,1,1,null,null,null,null,null,null,null,null,null,null,null,null,null,null,null,"Virtual Asincrónico","Febrero","Noviembre","Asincrónica","Primeros auxilios básicos","-","Seguridad industrial","Coordinadores, Líderes y miembros de los comités","10 Horas","Virtual Asincrónico-  A nivel nacional Unisanitas","-",1]
[62,"Virtual Asincrónico","Primeros auxilios psicológicos","-","Salud, Trabajo y Vida","Coordinadores, Líderes y miembros de los comités","10 Horas","Febrero","Asincrónica","Noviembre","Virtual Asincrónico-  A nivel nacional Unisanitas","-","Si","Todos los meses",1,1,1,1,null,null,null,null,null,null,null,null,null,null,null,null,null,null,null,"Virtual Asincrónico","Febrero","Noviembre","Asincrónica","Primeros auxilios psicológicos","-","Salud, Trabajo y Vida","Coordinadores, Líderes y miembros de los comités","10 Horas","Virtual Asincrónico-  A nivel nacional Unisanitas","-",1]
[63,"Virtual Asincrónico","Promueve y fortalece tu salud mental","-","Salud, Trabajo y Vida","Coordinadores, Líderes y miembros de los comités","10 Horas","Febrero","Asincrónica","Noviembre","Virtual Asincrónico-  A nivel nacional Unisanitas","-","Si","Todos los meses",1,1,1,1,null,null,null,null,null,null,null,null,null,null,null,null,null,null,null,"Virtual Asincrónico","Febrero","Noviembre","Asincrónica","Promueve y fortalece tu salud mental","-","Salud, Trabajo y Vida","Coordinadores, Líderes y miembros de los comités","10 Horas","Virtual Asincrónico-  A nivel nacional Unisanitas","-",1]
[64,"Virtual Asincrónico","Trabajando a distancia: Guía del empleador","-","Seguridad industrial","Coordinadores, Líderes y miembros de los comités","10 Horas","Febrero","Asincrónica","Noviembre","Virtual Asincrónico-  A nivel nacional Unisanitas","-","Si","Todos los meses",1,1,1,1,null,null,null,null,null,null,null,null,null,null,null,null,null,null,null,"Virtual Asincrónico","Febrero","Noviembre","Asincrónica","Trabajando a distancia: Guía del empleador","-","Seguridad industrial","Coordinadores, Líderes y miembros de los comités","10 Horas","Virtual Asincrónico-  A nivel nacional Unisanitas","-",1]
[65,"Virtual Asincrónico","Uso adecuado de los elementos de protección personal","-","Seguridad industrial","Coordinadores, Líderes y miembros de los comités","10 Horas","Febrero","Asincrónica","Noviembre","Virtual Asincrónico-  A nivel nacional Unisanitas","-","Si",{"$f":"IF(AND(M70=\"Si\",presencial=\"\"),\"Todos los meses\",IF(AND(M70=\"Si\",presencial<>\"\",presencial<>\"Diciembre\"),presencial,+PROPER(TEXT(H70,\"mmmm\"))))","v":"Todos los meses"},{"$f":"+IF(presencial=\"\",1,IF(presencial=N70,1,0))","v":1},1,1,1,null,null,null,null,null,null,null,null,null,null,null,null,null,null,null,"Virtual Asincrónico","Febrero","Noviembre","Asincrónica","Uso adecuado de los elementos de protección personal","-","Seguridad industrial","Coordinadores, Líderes y miembros de los comités","10 Horas","Virtual Asincrónico-  A nivel nacional Unisanitas","-",1]
[66,"Inducción Administrativa","Inducción procesos administrativos ARL","-","Gestión Administrativa ARL","Directores y/o coordinadores de talento humano, coordinadores y analistas de nómina, coordinadores de SST ",2,"Enero","Todos los Jueves 2:00 - 4:00 Pm","Noviembre ","Virtual Sincrónico Inducción Administrativa ARL","https://meet.google.com/heq-pyzw-yya?authuser=0","Si",{"$f":"IF(AND(M71=\"Si\",presencial=\"\"),\"Todos los meses\",IF(AND(M71=\"Si\",presencial<>\"\",presencial<>\"Diciembre\"),presencial,+PROPER(TEXT(H71,\"mmmm\"))))","v":"Todos los meses"},{"$f":"+IF(presencial=\"\",1,IF(presencial=N71,1,0))","v":1},{"$f":"+IF($P$3=\"\",1,IF($P$3=B71,1,0))","v":1},{"$f":"+IF($Q$3=\"\",1,IF($Q$3=F71,1,0))","v":1},{"$f":"+IF(SUM(O71:Q71)=3,1,0)","v":1},null,null,null,null,null,null,null,null,null,null,null,null,null,null,null,"(en blanco)","(en blanco)","(en blanco)","(en blanco)","(en blanco)","(en blanco)","(en blanco)","(en blanco)","(en blanco)","(en blanco)","(en blanco)",2]
[67,"Inducción Administrativa","Inducción procesos administrativos ARL","-","Gestión Administrativa ARL","Directores y/o coordinadores de talento humano, coordinadores y analistas de nómina, coordinadores de SST ",2,"Febrero","Todos los Jueves 2:00 - 4:00 Pm","Noviembre ","Virtual Sincrónico Inducción Administrativa ARL","https://meet.google.com/heq-pyzw-yya?authuser=0","Si","Todos los meses",1,1,1,1,null,null,null,null,null,null,null,null,null,null,null,null,null,null,null,"Inducción Administrativa","Enero","Noviembre ","Todos los Jueves 2:00 - 4:00 Pm","Inducción procesos administrativos ARL","-","Gestión Administrativa ARL","Directores y/o coordinadores de talento humano, coordinadores y analistas de nómina, coordinadores de SST ",2,"Virtual Sincrónico Inducción Administrativa ARL","https://meet.google.com/heq-pyzw-yya?authuser=0",1]
[68,"Inducción Administrativa","Inducción procesos administrativos ARL","-","Gestión Administrativa ARL","Directores y/o coordinadores de talento humano, coordinadores y analistas de nómina, coordinadores de SST ",2,"Marzo","Todos los Jueves 2:00 - 4:00 Pm","Noviembre ","Virtual Sincrónico Inducción Administrativa ARL","https://meet.google.com/heq-pyzw-yya?authuser=0",null,"Marzo",{"$f":"+IF(presencial=\"\",1,IF(presencial=N73,1,0))","v":1},{"$f":"+IF($P$3=\"\",1,IF($P$3=B73,1,0))","v":1},{"$f":"+IF($Q$3=\"\",1,IF($Q$3=F73,1,0))","v":1},{"$f":"+IF(SUM(O73:Q73)=3,1,0)","v":1},null,null,null,null,null,null,null,null,null,null,null,null,null,null,null,"Inducción Administrativa","Febrero","Noviembre ","Todos los Jueves 2:00 - 4:00 Pm","Inducción procesos administrativos ARL","-","Gestión Administrativa ARL","Directores y/o coordinadores de talento humano, coordinadores y analistas de nómina, coordinadores de SST ",2,"Virtual Sincrónico Inducción Administrativa ARL","https://meet.google.com/heq-pyzw-yya?authuser=0",1]
[69,"Inducción Administrativa","Inducción procesos administrativos ARL","-","Gestión Administrativa ARL","Directores y/o coordinadores de talento humano, coordinadores y analistas de nómina, coordinadores de SST ",2,"Abril ","Todos los Jueves 2:00 - 4:00 Pm","Noviembre ","Virtual Sincrónico Inducción Administrativa ARL","https://meet.google.com/heq-pyzw-yya?authuser=0",null,"Abril ",1,1,1,1,null,null,null,null,null,null,null,null,null,null,null,null,null,null,null,"Inducción Administrativa","Marzo","Noviembre ","Todos los Jueves 2:00 - 4:00 Pm","Inducción procesos administrativos ARL","-","Gestión Administrativa ARL","Directores y/o coordinadores de talento humano, coordinadores y analistas de nómina, coordinadores de SST ",2,"Virtual Sincrónico Inducción Administrativa ARL","https://meet.google.com/heq-pyzw-yya?authuser=0",1]
[70,"Inducción Administrativa","Inducción procesos administrativos ARL","-","Gestión Administrativa ARL","Directores y/o coordinadores de talento humano, coordinadores y analistas de nómina, coordinadores de SST ",2,"Mayo ","Todos los Jueves 2:00 - 4:00 Pm","Noviembre ","Virtual Sincrónico Inducción Administrativa ARL","https://meet.google.com/heq-pyzw-yya?authuser=0",null,"Mayo ",1,1,1,1,null,null,null,null,null,null,null,null,null,null,null,null,null,null,null,"Inducción Administrativa","Junio","Noviembre ","Todos los Jueves 2:00 - 4:00 Pm","Inducción procesos administrativos ARL","-","Gestión Administrativa ARL","Directores y/o coordinadores de talento humano, coordinadores y analistas de nómina, coordinadores de SST ",2,"Virtual Sincrónico Inducción Administrativa ARL","https://meet.google.com/heq-pyzw-yya?authuser=0",1]
[71,"Inducción Administrativa","Inducción procesos administrativos ARL","-","Gestión Administrativa ARL","Directores y/o coordinadores de talento humano, coordinadores y analistas de nómina, coordinadores de SST ",2,"Junio","Todos los Jueves 2:00 - 4:00 Pm","Noviembre ","Virtual Sincrónico Inducción Administrativa ARL","https://meet.google.com/heq-pyzw-yya?authuser=0",null,"Junio",1,1,1,1,null,null,null,null,null,null,null,null,null,null,null,null,null,null,null,"Inducción Administrativa","Julio","Noviembre ","Todos los Jueves 2:00 - 4:00 Pm","Inducción procesos administrativos ARL","-","Gestión Administrativa ARL","Directores y/o coordinadores de talento humano, coordinadores y analistas de nómina, coordinadores de SST ",2,"Virtual Sincrónico Inducción Administrativa ARL","https://meet.google.com/heq-pyzw-yya?authuser=0",1]
[72,"Inducción Administrativa","Inducción procesos administrativos ARL","-","Gestión Administrativa ARL","Directores y/o coordinadores de talento humano, coordinadores y analistas de nómina, coordinadores de SST ",2,"Julio","Todos los Jueves 2:00 - 4:00 Pm","Noviembre ","Virtual Sincrónico Inducción Administrativa ARL","https://meet.google.com/heq-pyzw-yya?authuser=0",null,"Julio",1,1,1,1,null,null,null,null,null,null,null,null,null,null,null,null,null,null,null,"Inducción Administrativa","Septiembre","Noviembre ","Todos los Jueves 2:00 - 4:00 Pm","Inducción procesos administrativos ARL","-","Gestión Administrativa ARL","Directores y/o coordinadores de talento humano, coordinadores y analistas de nómina, coordinadores de SST ",2,"Virtual Sincrónico Inducción Administrativa ARL","https://meet.google.com/heq-pyzw-yya?authuser=0",1]
[73,"Inducción Administrativa","Inducción procesos administrativos ARL","-","Gestión Administrativa ARL","Directores y/o coordinadores de talento humano, coordinadores y analistas de nómina, coordinadores de SST ",2,"Agosto ","Todos los Jueves 2:00 - 4:00 Pm","Noviembre ","Virtual Sincrónico Inducción Administrativa ARL","https://meet.google.com/heq-pyzw-yya?authuser=0",null,"Agosto ",1,1,1,1,null,null,null,null,null,null,null,null,null,null,null,null,null,null,null,"Inducción Administrativa","Octubre","Noviembre ","Todos los Jueves 2:00 - 4:00 Pm","Inducción procesos administrativos ARL","-","Gestión Administrativa ARL","Directores y/o coordinadores de talento humano, coordinadores y analistas de nómina, coordinadores de SST ",2,"Virtual Sincrónico Inducción Administrativa ARL","https://meet.google.com/heq-pyzw-yya?authuser=0",1]
[74,"Inducción Administrativa","Inducción procesos administrativos ARL","-","Gestión Administrativa ARL","Directores y/o coordinadores de talento humano, coordinadores y analistas de nómina, coordinadores de SST ",2,"Septiembre","Todos los Jueves 2:00 - 4:00 Pm","Noviembre ","Virtual Sincrónico Inducción Administrativa ARL","https://meet.google.com/heq-pyzw-yya?authuser=0",null,"Septiembre",1,1,1,1,null,null,null,null,null,null,null,null,null,null,null,null,null,null,null,"Inducción Administrativa","Noviembre","Noviembre ","Todos los Jueves 2:00 - 4:00 Pm","Inducción procesos administrativos ARL","-","Gestión Administrativa ARL","Directores y/o coordinadores de talento humano, coordinadores y analistas de nómina, coordinadores de SST ",2,"Virtual Sincrónico Inducción Administrativa ARL","https://meet.google.com/heq-pyzw-yya?authuser=0",1]
[75,"Inducción Administrativa","Inducción procesos administrativos ARL","-","Gestión Administrativa ARL","Directores y/o coordinadores de talento humano, coordinadores y analistas de nómina, coordinadores de SST ",2,"Octubre","Todos los Jueves 2:00 - 4:00 Pm","Noviembre ","Virtual Sincrónico Inducción Administrativa ARL","https://meet.google.com/heq-pyzw-yya?authuser=0",null,"Octubre",1,1,1,1,null,null,null,null,null,null,null,null,null,null,null,null,null,null,null,"Inducción Administrativa","Diciembre","Noviembre ","Todos los Jueves 2:00 - 4:00 Pm","Inducción procesos administrativos ARL","-","Gestión Administrativa ARL","Directores y/o coordinadores de talento humano, coordinadores y analistas de nómina, coordinadores de SST ",2,"Virtual Sincrónico Inducción Administrativa ARL","https://meet.google.com/heq-pyzw-yya?authuser=0",1]
[76,"Inducción Administrativa","Inducción procesos administrativos ARL","-","Gestión Administrativa ARL","Directores y/o coordinadores de talento humano, coordinadores y analistas de nómina, coordinadores de SST ",2,"Noviembre","Todos los Jueves 2:00 - 4:00 Pm","Noviembre ","Virtual Sincrónico Inducción Administrativa ARL","https://meet.google.com/heq-pyzw-yya?authuser=0",null,"Noviembre",1,1,1,1,null,null,null,null,null,null,null,null,null,null,null,null,null,null,null,"Inducción Administrativa","Abril ","Noviembre ","Todos los Jueves 2:00 - 4:00 Pm","Inducción procesos administrativos ARL","-","Gestión Administrativa ARL","Directores y/o coordinadores de talento humano, coordinadores y analistas de nómina, coordinadores de SST ",2,"Virtual Sincrónico Inducción Administrativa ARL","https://meet.google.com/heq-pyzw-yya?authuser=0",1]
[77,"Inducción Administrativa","Inducción procesos administrativos ARL","-","Gestión Administrativa ARL","Directores y/o coordinadores de talento humano, coordinadores y analistas de nómina, coordinadores de SST ",2,"Diciembre","Todos los Jueves 2:00 - 4:00 Pm","Noviembre ","Virtual Sincrónico Inducción Administrativa ARL","https://meet.google.com/heq-pyzw-yya?authuser=0",null,"Diciembre",1,1,1,1,null,null,null,null,null,null,null,null,null,null,null,null,null,null,null,"Inducción Administrativa","Agosto ","Noviembre ","Todos los Jueves 2:00 - 4:00 Pm","Inducción procesos administrativos ARL","-","Gestión Administrativa ARL","Directores y/o coordinadores de talento humano, coordinadores y analistas de nómina, coordinadores de SST ",2,"Virtual Sincrónico Inducción Administrativa ARL","https://meet.google.com/heq-pyzw-yya?authuser=0",1]
[null,null,null,null,null,null,null,null,null,null,null,null,null,"Enero",1,1,1,1,null,null,null,null,null,null,null,null,null,null,null,null,null,null,null,"Inducción Administrativa","Mayo ","Noviembre ","Todos los Jueves 2:00 - 4:00 Pm","Inducción procesos administrativos ARL","-","Gestión Administrativa ARL","Directores y/o coordinadores de talento humano, coordinadores y analistas de nómina, coordinadores de SST ",2,"Virtual Sincrónico Inducción Administrativa ARL","https://meet.google.com/heq-pyzw-yya?authuser=0",1]
[null,null,null,null,null,null,null,null,null,null,null,null,null,"Enero",1,1,1,1]